[Event "FIDE World Cup G12-A 2024"]
[Site "Batumi"]
[Date "2024.06.27"]
[Round "5.4"]
[White "Sevastsyanchuk, Anastasiya"]
[Black "Lu, Xiahan (Luna)"]
[Result "0-1"]
[ECO "C06"]
[WhiteElo "1531"]
[BlackElo "1859"]
[Annotator "NA RC"]
[PlyCount "114"]
[EventDate "2024.06.23"]
[EventType "swiss"]
[EventCountry "GEO"]
[SourceTitle "playchess.com"]
[Source "ChessBase"]
[SourceQuality "1"]
[TimeControl "5400+30"]

1. e4 {[%emt 0:00:02]} e6 {[%emt 0:00:06]} 2. d4 {[%emt 0:00:05]} d5 {[%emt 0:00:04]} 3. Nd2 {[%emt 0:00:08]} Nf6 {[%emt 0:00:04]} 4. e5 {[%emt 0:00:03]} Nfd7 {[%emt 0:00:04]} 5. Bd3 {[%emt 0:00:07]} c5 {[%emt 0:00:03]} 6. c3 {[%emt 0:00:05]} b6 {[%emt 0:00:35]} 7. Ne2 {[%emt 0:02:36]} Ba6 {[%emt 0:00:38]} 8. Bc2 {[%emt 0:07:54]} cxd4 {[%emt 0:04:22] C06: French Tarrasch: 3...Nf6 4 e5 Nfd7 5 Bd3 main lines.} 9. cxd4 {[%emt 0:00:09]} Nc6 {[%emt 0:01:48]} 10. Nf3 {[%emt 0:01:03]} Bb4+ {[%emt 0:04:00]} 11. Bd2 {[%emt 0:01:22]} Bxd2+ {[%emt 0:01:00]} 12. Qxd2 {[%emt 0:00:22]} Rc8 {[%emt 0:03:40]} 13. a3 {[%emt 0:02:46]} Na5 {[%emt 0:04:43]} 14. b3 {[%emt 0:01:40]} Bxe2 {[%emt 0:00:54]} 15. Qxe2 {[%emt 0:00:10]} Qc7 {[%emt 0:00:09]} 16. Ra2 {[%emt 0:03:25]} Qc3+ {[%emt 0:02:27]} 17. Qd2 {[%emt 0:00:07]} Nxb3 {[%emt 0:03:26]} 18. Qxc3 {[%emt 0:02:01]} Rxc3 {[%emt 0:00:08]} 19. Rb2 {[%emt 0:02:56]} Na5 $19 {[%emt 0:02:20]} 20. a4 {[%emt 0:05:46]} Ke7 {[%emt 0:02:49]} 21. Kd2 {[%emt 0:02:41]} Rhc8 {[%emt 0:03:27]} 22. h4 {[%emt 0:01:00]} h6 {[%emt 0:02:00]} 23. Ra2 {[%emt 0:04:58]} Nb8 {[%emt 1:03:13]} 24. Rb1 {[%emt 0:06:25]} Na6 {[%emt 0:00:00]} 25. Bd1 {[%emt 0:03:06]} Ra3 {[%emt 0:00:00]} 26. Rxa3 {[%emt 0:04:34]} Nc4+ {[%emt 0:00:00]} 27. Ke1 {[%emt 0:01:44]} Nxa3 {[%emt 0:00:00]} 28. Rb3 {[%emt 0:00:27]} Nc4 {[%emt 0:00:00]} 29. g4 {[%emt 0:04:04]} f6 {[%emt 0:00:00]} 30. Be2 {[%emt 0:07:40]} Nb8 {[%emt 0:00:00]} 31. g5 {[%emt 0:09:10]} fxe5 {[%emt 0:00:00]} 32. dxe5 {[%emt 0:00:10]} Nd7 {[%emt 0:00:00]} 33. Rc3 {[%emt 0:03:57]} Rc5 {[%emt 0:00:00]} 34. Bxc4 {[%emt 0:01:02]} dxc4 {[%emt 0:00:00]} 35. Kd2 {[%emt 0:04:14]} a6 {[%emt 0:00:00]} 36. Nd4 {[%emt 0:00:56]} Rd5 {[%emt 0:00:00]} 37. Rxc4 {[%emt 0:02:15]} Nxe5 {[%emt 0:00:00]} 38. Rc7+ {[%emt 0:00:39]} Kd6 {[%emt 0:00:00]} 39. Rxg7 {[%emt 0:00:36]} Rxd4+ {[%emt 0:00:00]} 40. Ke3 {[%emt 0:00:09]} Rxh4 {[%emt 0:00:00]} 41. f4 {[%emt 0:00:55]} Rh3+ {[%emt 0:00:00]} 42. Ke2 {[%emt 0:01:03]} Nc6 {[%emt 0:00:00]} 43. Rh7 {[%emt 0:00:35]} Nd4+ {[%emt 0:00:00]} 44. Kf2 {[%emt 0:01:11]} Rf3+ {[%emt 0:00:00]} 45. Kg2 {[%emt 0:00:07]} Rxf4 {[%emt 0:00:00]} 46. gxh6 {[%emt 0:00:23]} Nf5 {[%emt 0:00:00]} 47. Rh8 {[%emt 0:00:05]} Rxa4 {[%emt 0:00:00]} 48. h7 {[%emt 0:00:10]} Nh4+ {[%emt 0:00:00]} 49. Kg3 {[%emt 0:02:17]} Ng6 {[%emt 0:00:00]} 50. Rd8+ {[%emt 0:01:30]} Ke7 {[%emt 0:00:00]} 51. Rb8 {[%emt 0:00:34]} b5 {[%emt 0:00:00]} 52. Ra8 {[%emt 0:00:29]} a5 {[%emt 0:00:00]} 53. Rb8 {[%emt 0:00:14]} b4 {[%emt 0:00:00]} 54. Kg4 {[%emt 0:00:16]} Kf6 {[%emt 0:00:00]} 55. Rg8 {[%emt 0:00:09]} b3+ {[%emt 0:00:00]} 56. Kf3 {[%emt 0:00:28]} Rh4 {[%emt 0:00:00]} 57. Kg3 {[%emt 0:00:13]} Rxh7 {[%emt 0:00:00]} 0-1

[Event "FIDE World Cup G12-A 2024"]
[Site "Batumi"]
[Date "2024.06.27"]
[Round "5.5"]
[White "Xikmatkhonova, Mokhinur"]
[Black "Diaskyzy, Daliya"]
[Result "1-0"]
[ECO "D00"]
[WhiteElo "1706"]
[BlackElo "1793"]
[Annotator "NA RC"]
[PlyCount "111"]
[EventDate "2024.06.23"]
[EventType "swiss"]
[EventCountry "GEO"]
[SourceTitle "playchess.com"]
[Source "ChessBase"]
[SourceQuality "1"]
[TimeControl "5400+30"]

1. d4 {[%emt 0:00:03]} d5 {[%emt 0:00:04]} 2. Nc3 {[%emt 0:00:09]} Nf6 {[%emt 0:00:04]} 3. Bf4 {[%emt 0:00:08]} c5 {[%emt 0:00:04]} 4. e3 {[%emt 0:00:08]} a6 {[%emt 0:00:03]} 5. Nf3 {[%emt 0:00:07]} e6 {[%emt 0:00:10]} 6. Be2 {[%emt 0:02:51]} b5 {[%emt 0:00:08]} 7. a3 {[%emt 0:02:12]} c4 {[%emt 0:06:31]} 8. Ne5 {[%emt 0:00:48]} Nfd7 {[%emt 0:01:05]} 9. Bf3 {[%emt 0:06:57]} Nxe5 {[%emt 0:01:53]} 10. Bxe5 {[%emt 0:00:07]} Nc6 {[%emt 0:00:09]} 11. Bg3 {[%emt 0:00:10]} Bb7 {[%emt 0:08:30]} 12. O-O {[%emt 0:02:47]} Bd6 {[%emt 0:04:23]} 13. e4 {[%emt 0:17:02]} Bxg3 {[%emt 0:01:55]} 14. hxg3 {[%emt 0:02:04]} dxe4 {[%emt 0:02:31]} 15. Bxe4 {[%emt 0:00:58]} O-O {[%emt 0:00:45]} 16. Ne2 {[%emt 0:04:04]} Na5 {[%emt 0:04:54]} 17. Bxb7 {[%emt 0:00:37]} Nxb7 {[%emt 0:00:04]} 18. c3 {[%emt 0:00:17]} Nd6 {[%emt 0:04:52]} 19. Nf4 {[%emt 0:03:58]} a5 {[%emt 0:05:05]} 20. Re1 {[%emt 0:01:15]} Qf6 {[%emt 0:09:59]} 21. Re5 {[%emt 0:02:38]} Rab8 {[%emt 0:02:24]} 22. Qd2 {[%emt 0:09:22]} Nf5 {[%emt 0:03:55]} 23. a4 {[%emt 0:06:09]} Rfd8 {[%emt 0:21:47]} 24. Rxb5 {[%emt 0:03:07]} Rxb5 {[%emt 0:00:11]} 25. axb5 {[%emt 0:00:02]} e5 {[%emt 0:00:27]} 26. dxe5 {[%emt 0:11:32]} Qb6 {[%emt 0:00:31]} 27. Nd5 {[%emt 0:05:10]} Qb8 {[%emt 0:02:06]} 28. Rxa5 {[%emt 0:03:15]} Kf8 {[%emt 0:04:30]} 29. Qf4 {[%emt 0:05:11]} Nxg3 {[%emt 0:02:54]} 30. Qxc4 {[%emt 0:04:12]} Ne2+ {[%emt 0:03:43]} 31. Qxe2 {[%emt 0:00:43]} Rxd5 {[%emt 0:00:06]} 32. g3 {[%emt 0:05:51]} Rxe5 {[%emt 0:01:02]} 33. Qf3 {[%emt 0:00:33]} Qb6 {[%emt 0:02:39]} 34. Ra8+ {[%emt 0:00:45]} Ke7 {[%emt 0:00:43]} 35. c4 {[%emt 0:00:36]} f6 {[%emt 0:04:02]} 36. Qa3+ {[%emt 0:00:30]} Qc5 {[%emt 0:03:34]} 37. Ra7+ {[%emt 0:00:07]} Ke6 {[%emt 0:00:28]} 38. Qxc5 {[%emt 0:00:54]} Rxc5 {[%emt 0:00:05]} 39. b3 {[%emt 0:00:05]} g5 {[%emt 0:00:37]} 40. Rxh7 {[%emt 0:00:17]} Re5 {[%emt 0:00:02]} 41. Kf1 {[%emt 0:00:40]} Kd6 {[%emt 0:00:05]} 42. Rf7 {[%emt 0:01:08]} Kc5 {[%emt 0:01:05]} 43. Rxf6 {[%emt 0:00:10]} Kb4 {[%emt 0:00:10]} 44. b6 {[%emt 0:00:24]} Re8 {[%emt 0:01:42]} 45. b7 {[%emt 0:00:17]} Rb8 {[%emt 0:00:04]} 46. Rb6+ {[%emt 0:00:01]} Kc5 {[%emt 0:00:06]} 47. Rb5+ {[%emt 0:00:02]} Kc6 {[%emt 0:00:05]} 48. b4 {[%emt 0:00:19]} g4 {[%emt 0:00:07]} 49. Ke2 {[%emt 0:00:19]} Re8+ {[%emt 0:00:06]} 50. Kd3 {[%emt 0:00:11]} Rd8+ {[%emt 0:00:06]} 51. Ke4 {[%emt 0:00:08]} Re8+ {[%emt 0:00:09]} 52. Kf4 {[%emt 0:00:02]} Rf8+ {[%emt 0:00:04]} 53. Kxg4 {[%emt 0:00:07]} Rg8+ {[%emt 0:00:06]} 54. Kh3 {[%emt 0:00:10]} Rh8+ {[%emt 0:00:04]} 55. Kg2 {[%emt 0:00:02]} Rb8 {[%emt 0:00:04]} 56. f4 {[%emt 0:00:14]} 1-0

[Event "FIDE World Cup G12-A 2024"]
[Site "Batumi"]
[Date "2024.06.27"]
[Round "5.6"]
[White "Kedelidze, Aneta"]
[Black "Wu, Yiting"]
[Result "0-1"]
[ECO "B12"]
[WhiteElo "1544"]
[BlackElo "1758"]
[Annotator "NA RC"]
[PlyCount "100"]
[EventDate "2024.06.23"]
[EventType "swiss"]
[EventCountry "GEO"]
[SourceTitle "playchess.com"]
[Source "ChessBase"]
[SourceQuality "1"]
[TimeControl "5400+30"]

1. e4 {[%emt 0:00:21]} c6 {[%emt 0:00:07]} 2. d4 {[%emt 0:00:05]} d5 {[%emt 0:00:06]} 3. e5 {[%emt 0:00:07]} Bf5 {[%emt 0:00:07]} 4. h4 {[%emt 0:00:07]} h5 {[%emt 0:00:07]} 5. Bd3 {[%emt 0:00:05]} Bxd3 {[%emt 0:00:12]} 6. Qxd3 {[%emt 0:00:05]} e6 {[%emt 0:00:15]} 7. Bg5 {[%emt 0:00:08]} Ne7 {[%emt 0:01:31]} 8. Nd2 {[%emt 0:04:10]} Qb6 {[%emt 0:04:25]} 9. Nb3 {[%emt 0:08:26]} Nd7 {[%emt 0:01:11]} 10. Nf3 {[%emt 0:05:30]} c5 {[%emt 0:04:30]} 11. dxc5 {[%emt 0:02:33]} Nxc5 {[%emt 0:00:42]} 12. Nxc5 {[%emt 0:00:48]} Qxc5 {[%emt 0:00:09]} 13. O-O {[%emt 0:01:25]} Nf5 {[%emt 0:09:08]} 14. Rad1 {[%emt 0:03:31]} Be7 {[%emt 0:04:57]} 15. Bxe7 {[%emt 0:09:01]} Qxe7 {[%emt 0:08:56]} 16. Qb5+ {[%emt 0:01:09]} Qd7 {[%emt 0:03:23]} 17. Qxd7+ {[%emt 0:00:45]} Kxd7 {[%emt 0:00:02]} 18. c4 {[%emt 0:00:10]} Ne7 {[%emt 0:00:18]} 19. Rd4 {[%emt 0:03:04]} Rhd8 {[%emt 0:06:33]} 20. Rf4 {[%emt 0:05:29]} Ke8 {[%emt 0:04:30]} 21. Ng5 {[%emt 0:07:46]} Nf5 {[%emt 0:01:12]} 22. cxd5 {[%emt 0:06:24]} Rxd5 {[%emt 0:00:18]} 23. Rc1 {[%emt 0:01:12]} Rd7 {[%emt 0:09:56]} 24. Rfc4 {[%emt 0:04:30]} Rad8 {[%emt 0:03:54]} 25. g3 {[%emt 0:13:15]} Nd4 {[%emt 0:04:10]} 26. Kg2 {[%emt 0:06:57]} Nc6 {[%emt 0:01:57]} 27. Nf3 {[%emt 0:01:29]} Rd3 {[%emt 0:06:07]} 28. R4c3 {[%emt 0:05:37]} Rxc3 {[%emt 0:03:18]} 29. Rxc3 {[%emt 0:00:09]} Rd5 {[%emt 0:00:25]} 30. Rb3 {[%emt 0:01:56]} b6 {[%emt 0:05:30]} 31. Re3 {[%emt 0:01:23]} Rc5 {[%emt 0:04:15]} 32. Re2 {[%emt 0:02:47]} Ke7 {[%emt 0:04:23]} 33. a3 {[%emt 0:01:44]} a5 {[%emt 0:00:22]} 34. Re3 {[%emt 0:00:53]} a4 {[%emt 0:03:17]} 35. Rc3 {[%emt 0:01:17]} Rxc3 {[%emt 0:01:32]} 36. bxc3 {[%emt 0:00:02]} Na5 {[%emt 0:00:09]} 37. Nd2 {[%emt 0:00:16]} Kd7 {[%emt 0:02:04]} 38. Kf3 {[%emt 0:00:38]} Kc6 {[%emt 0:00:36]} 39. Ke4 {[%emt 0:00:23]} Kc5 {[%emt 0:00:40]} 40. Kd3 {[%emt 0:01:55]} Kd5 {[%emt 0:00:13]} 41. f4 {[%emt 0:00:29]} b5 {[%emt 0:00:18]} 42. Nf3 {[%emt 0:02:46]} Nc4 {[%emt 0:01:07]} 43. Ng5 {[%emt 0:00:11]} Nxa3 {[%emt 0:00:57]} 44. Nxf7 {[%emt 0:00:10]} Nc4 {[%emt 0:00:13]} 45. Kc2 {[%emt 0:00:37]} Ne3+ {[%emt 0:01:04]} 46. Kb2 {[%emt 0:00:26]} Nf5 {[%emt 0:00:24]} 47. Ng5 {[%emt 0:00:17]} Nxg3 {[%emt 0:00:15]} 48. Nf3 {[%emt 0:01:09]} Ne2 {[%emt 0:01:01]} 49. Kc2 {[%emt 0:00:47]} Nxf4 {[%emt 0:00:13]} 50. Kb2 {[%emt 0:00:29]} Nd3+ {[%emt 0:00:14]} 0-1

[Event "FIDE World Cup G12-A 2024"]
[Site "Batumi"]
[Date "2024.06.27"]
[Round "5.7"]
[White "Muradova, Nebahat"]
[Black "Chichinadze, Anastasia"]
[Result "0-1"]
[ECO "E11"]
[WhiteElo "1626"]
[BlackElo "1724"]
[Annotator "NA RC"]
[PlyCount "80"]
[EventDate "2024.06.23"]
[EventType "swiss"]
[EventCountry "GEO"]
[SourceTitle "playchess.com"]
[Source "ChessBase"]
[SourceQuality "1"]
[TimeControl "5400+30"]

1. d4 {[%emt 0:00:08]} Nf6 {[%emt 0:00:03]} 2. c4 {[%emt 0:00:10]} e6 {[%emt 0:00:04]} 3. Nf3 {[%emt 0:00:16]} Bb4+ {[%emt 0:00:14]} 4. Bd2 {[%emt 0:00:08]} Bxd2+ {[%emt 0:01:43]} 5. Nbxd2 {[%emt 0:01:33]} d5 {[%emt 0:00:55]} 6. e3 {[%emt 0:00:24]} Nbd7 {[%emt 0:04:29]} 7. Bd3 {[%emt 0:00:21]} c5 {[%emt 0:08:25]} 8. O-O {[%emt 0:01:40]} b6 {[%emt 0:09:00]} 9. Rc1 {[%emt 0:05:09]} Bb7 {[%emt 0:03:52]} 10. cxd5 {[%emt 0:04:19]} exd5 {[%emt 0:05:53]} 11. dxc5 {[%emt 0:06:29]} bxc5 {[%emt 0:04:19]} 12. Bb5 {[%emt 0:01:29]} O-O {[%emt 0:03:21]} 13. Nb3 {[%emt 0:05:58]} c4 {[%emt 0:04:00]} 14. Nbd4 {[%emt 0:00:54]} Nc5 {[%emt 0:05:00]} 15. Bc6 {[%emt 0:05:56]} Rb8 {[%emt 0:10:28]} 16. Ne5 {[%emt 0:07:15]} Ba6 {[%emt 0:05:38]} 17. Re1 {[%emt 0:10:41]} Rxb2 {[%emt 0:05:28]} 18. Ba4 {[%emt 0:02:45]} Nfe4 {[%emt 0:12:15]} 19. Bc2 {[%emt 0:04:32]} Re8 {[%emt 0:04:29]} 20. Ndc6 {[%emt 0:01:38]} Qd6 {[%emt 0:03:49]} 21. f3 {[%emt 0:03:19]} Nf6 {[%emt 0:01:35]} 22. Qd4 {[%emt 0:02:58]} Rb6 {[%emt 0:00:53]} 23. Rb1 {[%emt 0:05:04]} Rxc6 {[%emt 0:01:11]} 24. Nxc6 {[%emt 0:00:04]} Qxc6 {[%emt 0:00:07]} 25. e4 {[%emt 0:02:08]} dxe4 {[%emt 0:04:27]} 26. fxe4 {[%emt 0:00:12]} Qc7 {[%emt 0:00:30]} 27. e5 {[%emt 0:00:42]} Nfd7 {[%emt 0:00:41]} 28. Re3 {[%emt 0:02:49]} Rxe5 {[%emt 0:01:05]} 29. Rh3 {[%emt 0:04:33]} Nf6 {[%emt 0:00:28]} 30. Rf1 {[%emt 0:02:00]} Ne6 {[%emt 0:00:26]} 31. Qc3 {[%emt 0:01:09]} Qc5+ {[%emt 0:00:17]} 32. Kh1 {[%emt 0:00:06]} Ng5 {[%emt 0:00:35]} 33. Rg3 {[%emt 0:01:01]} Nfe4 {[%emt 0:00:30]} 34. Bxe4 {[%emt 0:00:59]} Nxe4 {[%emt 0:00:09]} 35. Qf3 {[%emt 0:00:42]} Nxg3+ {[%emt 0:00:14]} 36. Qxg3 {[%emt 0:00:12]} Qe3 {[%emt 0:00:42]} 37. Qh4 {[%emt 0:00:23]} c3 {[%emt 0:00:45]} 38. Rg1 {[%emt 0:00:44]} c2 {[%emt 0:00:20]} 39. Qd8+ {[%emt 0:00:20]} Re8 {[%emt 0:00:05]} 40. Qc7 {[%emt 0:00:07]} Rc8 {[%emt 0:00:18]} 0-1

[Event "FIDE World Cup G12-A 2024"]
[Site "Batumi"]
[Date "2024.06.27"]
[Round "5.8"]
[White "Mamakova, Aknur"]
[Black "Lipartia, Nino"]
[Result "1-0"]
[ECO "D38"]
[WhiteElo "1648"]
[BlackElo "1437"]
[Annotator "NA RC"]
[PlyCount "107"]
[EventDate "2024.06.23"]
[EventType "swiss"]
[EventCountry "GEO"]
[SourceTitle "playchess.com"]
[Source "ChessBase"]
[SourceQuality "1"]
[TimeControl "5400+30"]

1. d4 {[%emt 0:00:08]} Nf6 {[%emt 0:00:03]} 2. c4 {[%emt 0:00:12]} e6 {[%emt 0:00:01]} 3. Nc3 {[%emt 0:00:09]} Bb4 {[%emt 0:00:01]} 4. Nf3 {[%emt 0:00:22]} O-O {[%emt 0:01:02]} 5. Bg5 {[%emt 0:00:26]} d5 {[%emt 0:05:38]} 6. e3 {[%emt 0:00:59]} c5 {[%emt 0:02:10]} 7. dxc5 {[%emt 0:02:39]} Nbd7 {[%emt 0:05:52]} 8. Be2 {[%emt 0:09:52]} Qa5 {[%emt 0:04:51]} 9. O-O {[%emt 0:03:41]} Bxc3 {[%emt 0:02:54]} 10. bxc3 {[%emt 0:00:07]} Qxc5 {[%emt 0:00:25]} 11. Qd4 {[%emt 0:06:19]} Ne4 {[%emt 0:14:05]} 12. Bh4 {[%emt 0:06:33]} Qa3 {[%emt 0:16:30]} 13. Rfc1 {[%emt 0:08:09]} Re8 {[%emt 0:16:21]} 14. Bd3 {[%emt 0:17:31]} Ndc5 {[%emt 0:16:05]} 15. Bxe4 {[%emt 0:01:50]} dxe4 {[%emt 0:05:56]} 16. Be7 {[%emt 0:04:15]} exf3 {[%emt 0:02:28]} 17. Bxc5 {[%emt 0:00:09]} Qa5 {[%emt 0:00:49]} 18. gxf3 {[%emt 0:10:06]} b6 {[%emt 0:01:34]} 19. Bb4 {[%emt 0:01:01]} Qg5+ {[%emt 0:00:14]} 20. Qg4 {[%emt 0:00:18]} Qxg4+ {[%emt 0:00:01]} 21. fxg4 {[%emt 0:00:08]} Bb7 {[%emt 0:01:22]} 22. c5 {[%emt 0:03:03]} b5 {[%emt 0:00:37]} 23. Rd1 {[%emt 0:09:16]} Bd5 {[%emt 0:00:46]} 24. Rd4 {[%emt 0:01:08]} h6 {[%emt 0:00:25]} 25. e4 {[%emt 0:01:11]} Bc6 {[%emt 0:00:03]} 26. f3 {[%emt 0:00:12]} a5 {[%emt 0:00:23]} 27. Ba3 {[%emt 0:00:13]} e5 {[%emt 0:00:41]} 28. Rd6 {[%emt 0:00:14]} Rac8 {[%emt 0:00:06]} 29. Rad1 {[%emt 0:00:19]} Re7 {[%emt 0:02:21]} 30. Rd8+ {[%emt 0:01:08]} Rxd8 {[%emt 0:00:19]} 31. Rxd8+ {[%emt 0:00:02]} Kh7 {[%emt 0:00:01]} 32. Rc8 {[%emt 0:00:43]} Bb7 {[%emt 0:00:36]} 33. Rd8 {[%emt 0:02:40]} Rc7 {[%emt 0:00:26]} 34. Kf2 {[%emt 0:00:24]} Rc6 {[%emt 0:01:07]} 35. Rd7 {[%emt 0:00:11]} Bc8 {[%emt 0:00:20]} 36. Rxf7 {[%emt 0:00:39]} Be6 {[%emt 0:00:14]} 37. Ra7 {[%emt 0:00:19]} a4 {[%emt 0:00:34]} 38. Rb7 {[%emt 0:00:12]} Bc4 {[%emt 0:00:42]} 39. Rb6 {[%emt 0:00:32]} Rc8 {[%emt 0:00:09]} 40. Bb4 {[%emt 0:03:14]} Rd8 {[%emt 0:01:27]} 41. c6 {[%emt 0:00:54]} Rd2+ {[%emt 0:00:11]} 42. Ke1 {[%emt 0:01:39]} Re2+ {[%emt 0:00:31]} 43. Kd1 {[%emt 0:00:11]} Rxa2 {[%emt 0:00:21]} 44. c7 {[%emt 0:00:37]} Bb3+ {[%emt 0:00:42]} 45. Ke1 {[%emt 0:00:08]} Ra1+ {[%emt 0:00:49]} 46. Kf2 {[%emt 0:00:07]} Ra2+ {[%emt 0:00:15]} 47. Kg3 {[%emt 0:00:28]} Ra1 {[%emt 0:00:57]} 48. c8=Q {[%emt 0:00:14]} a3 {[%emt 0:00:15]} 49. Qf5+ {[%emt 0:00:09]} Kh8 {[%emt 0:00:05]} 50. Rb8+ {[%emt 0:00:07]} Bg8 {[%emt 0:00:08]} 51. Qf8 {[%emt 0:00:25]} Kh7 {[%emt 0:00:19]} 52. Qxg8+ {[%emt 0:00:05]} Kg6 {[%emt 0:00:03]} 53. Qe6+ {[%emt 0:00:05]} Kh7 {[%emt 0:00:05]} 54. Qf5+ {[%emt 0:00:08]} 1-0

[Event "FIDE World Cup G12-A 2024"]
[Site "Batumi"]
[Date "2024.06.27"]
[Round "5.9"]
[White "Zavivaeva, Angelina"]
[Black "Kutateladze, Anastasia"]
[Result "1/2-1/2"]
[ECO "B40"]
[WhiteElo "1489"]
[BlackElo "1598"]
[Annotator "NA RC"]
[PlyCount "121"]
[EventDate "2024.06.23"]
[EventType "swiss"]
[EventCountry "GEO"]
[SourceTitle "playchess.com"]
[Source "ChessBase"]
[SourceQuality "1"]
[TimeControl "5400+30"]

1. e4 {[%emt 0:00:01]} c5 {[%emt 0:00:04]} 2. Nf3 {[%emt 0:00:06]} e6 {[%emt 0:00:03]} 3. b3 {[%emt 1:31:53]} Nc6 {[%emt 0:00:29]} 4. Bb2 {[%emt 0:00:00]} a6 {[%emt 0:00:33]} 5. c4 {[%emt 0:00:00]} d6 {[%emt 0:02:37]} 6. g3 {[%emt 0:00:00]} e5 {[%emt 0:01:24]} 7. Bg2 {[%emt 0:00:00]} g6 {[%emt 0:04:16]} 8. O-O {[%emt 0:00:00]} Bg7 {[%emt 0:00:14]} 9. Nc3 {[%emt 0:00:00]} Nge7 {[%emt 0:01:17]} 10. Nd5 {[%emt 0:00:00]} O-O {[%emt 0:08:33]} 11. Qc2 {[%emt 0:00:00]} f5 {[%emt 0:10:00]} 12. exf5 {[%emt 0:00:00]} Bxf5 {[%emt 0:02:17]} 13. Nxe7+ {[%emt 0:00:00]} Qxe7 {[%emt 0:00:18]} 14. d3 {[%emt 0:00:00]} Nb4 {[%emt 0:08:22]} 15. Qd2 {[%emt 0:00:00]} Nxd3 {[%emt 0:10:46]} 16. Bc3 {[%emt 0:00:00]} e4 {[%emt 0:02:42]} 17. Bxg7 {[%emt 0:00:00]} Kxg7 {[%emt 0:02:03]} 18. Ng5 {[%emt 0:00:00]} h6 {[%emt 0:12:26]} 19. Nh3 {[%emt 0:00:00]} Bxh3 {[%emt 0:03:44]} 20. Bxh3 {[%emt 0:00:00]} Ne5 {[%emt 0:01:00]} 21. Qe3 {[%emt 0:00:00]} Nf3+ {[%emt 0:05:26]} 22. Kh1 {[%emt 0:00:00]} Qe5 {[%emt 0:02:16]} 23. Bg2 {[%emt 0:00:00]} h5 {[%emt 0:03:55]} 24. Rad1 {[%emt 0:00:00]} Rae8 {[%emt 0:02:04]} 25. Rd5 {[%emt 0:00:44]} Qe6 {[%emt 0:01:03]} 26. Rfd1 {[%emt 0:01:02]} Nd4 {[%emt 0:01:11]} 27. Re1 {[%emt 0:03:45]} Qf6 {[%emt 0:03:03]} 28. Rf1 {[%emt 0:02:25]} Qe6 {[%emt 0:04:57]} 29. Re1 {[%emt 0:00:08]} Qf6 {[%emt 0:00:56]} 30. Rf1 {[%emt 0:00:05]} Nc2 {[%emt 0:01:54]} 31. Qe2 {[%emt 0:03:09]} Nb4 {[%emt 0:00:40]} 32. Rdd1 {[%emt 0:00:47]} Qe6 {[%emt 0:02:13]} 33. a3 {[%emt 0:00:57]} Nd3 {[%emt 0:00:33]} 34. Qe3 {[%emt 0:00:50]} Qe5 {[%emt 0:01:04]} 35. a4 {[%emt 0:00:54]} Qb2 {[%emt 0:01:37]} 36. Rb1 {[%emt 0:00:07]} Qd4 {[%emt 0:00:31]} 37. Kg1 {[%emt 0:01:21]} Rf7 {[%emt 0:01:32]} 38. Rbd1 {[%emt 0:00:30]} Qe5 {[%emt 0:00:45]} 39. Bh3 {[%emt 0:00:34]} g5 {[%emt 0:00:10]} 40. Bg2 {[%emt 0:00:32]} Nb4 {[%emt 0:00:18]} 41. Rd2 {[%emt 0:00:27]} Nd3 {[%emt 0:00:13]} 42. Re2 {[%emt 0:00:18]} Rfe7 {[%emt 0:00:27]} 43. Qd2 {[%emt 0:00:30]} Qf6 {[%emt 0:00:42]} 44. Qe3 {[%emt 0:00:24]} Kh6 {[%emt 0:00:27]} 45. Qd2 {[%emt 0:00:41]} Kg7 {[%emt 0:00:03]} 46. Qe3 {[%emt 0:00:08]} g4 {[%emt 0:00:21]} 47. Rd2 {[%emt 0:00:59]} Nb4 {[%emt 0:00:38]} 48. Rfd1 {[%emt 0:00:19]} Re6 {[%emt 0:00:41]} 49. Re1 {[%emt 0:00:41]} Re5 {[%emt 0:00:17]} 50. Red1 {[%emt 0:00:17]} R8e6 {[%emt 0:00:55]} 51. Re2 {[%emt 0:00:34]} Nc6 {[%emt 0:00:53]} 52. Red2 {[%emt 0:00:11]} Nd4 {[%emt 0:00:06]} 53. Kh1 {[%emt 0:00:54]} Kg6 {[%emt 0:00:33]} 54. Rf1 {[%emt 0:00:37]} Qf5 {[%emt 0:00:33]} 55. Rdd1 {[%emt 0:00:34]} Kg7 {[%emt 0:00:38]} 56. Rd2 {[%emt 0:00:12]} Kh7 {[%emt 0:00:23]} 57. Rdd1 {[%emt 0:00:07]} Nf3 {[%emt 0:00:48]} 58. Rc1 {[%emt 0:00:29]} h4 {[%emt 0:00:22]} 59. gxh4 {[%emt 0:00:58]} Rh6 {[%emt 0:00:32]} 60. Qe2 {[%emt 0:00:46]} Rxh4 {[%emt 0:00:00]} 61. Rfd1 {[%emt 0:00:00]} 1/2-1/2

[Event "FIDE World Cup G12-A 2024"]
[Site "Batumi"]
[Date "2024.06.27"]
[Round "5.10"]
[White "Potikha, Shelley"]
[Black "Gulishyan, Eseniya"]
[Result "1/2-1/2"]
[ECO "C54"]
[WhiteElo "1464"]
[BlackElo "1434"]
[Annotator "NA RC"]
[PlyCount "40"]
[EventDate "2024.06.23"]
[EventType "swiss"]
[EventCountry "GEO"]
[SourceTitle "playchess.com"]
[Source "ChessBase"]
[SourceQuality "1"]
[TimeControl "5400+30"]

1. e4 {[%emt 0:00:02]} e5 {[%emt 0:00:16]} 2. Nf3 {[%emt 0:00:08]} Nc6 {[%emt 0:00:03]} 3. Bc4 {[%emt 0:00:06]} Bc5 {[%emt 0:00:07]} 4. c3 {[%emt 0:00:07]} Nf6 {[%emt 0:00:06]} 5. d4 {[%emt 0:00:13]} exd4 {[%emt 0:00:20]} 6. e5 {[%emt 0:00:07]} d5 {[%emt 0:00:13]} 7. Bb5 {[%emt 0:00:13]} Ne4 {[%emt 0:02:07]} 8. cxd4 {[%emt 0:00:21]} Bb6 {[%emt 0:01:32]} 9. Nc3 {[%emt 0:00:15]} O-O {[%emt 0:01:36]} 10. Be3 {[%emt 0:00:20]} Be6 {[%emt 0:10:24]} 11. O-O {[%emt 0:05:17]} f6 {[%emt 0:07:41]} 12. exf6 {[%emt 0:02:28]} Qxf6 {[%emt 0:10:56]} 13. Bxc6 {[%emt 0:01:44]} bxc6 {[%emt 0:00:09]} 14. Ne5 {[%emt 0:00:18]} c5 {[%emt 0:11:08]} 15. f4 {[%emt 0:14:33]} cxd4 {[%emt 0:06:57]} 16. Bxd4 {[%emt 0:07:01]} c5 {[%emt 0:02:22]} 17. Nxe4 {[%emt 0:07:30]} dxe4 {[%emt 0:00:54]} 18. Bc3 {[%emt 0:01:30]} c4+ {[%emt 0:01:45]} 19. Kh1 {[%emt 0:00:24]} Qh6 {[%emt 0:06:40]} 20. Qd6 {[%emt 0:11:50]} Rae8 {[%emt 0:11:45]} 1/2-1/2